lending/lending_fUSD_20240219
["ID","MTS","AMOUNT","RATE_DAILY","PERIOD"]
[314419556,1708326643501,-563.6314083,0.00038899,4]
[314419557,1708326643510,-500.0,0.00038899,4]
[314419558,1708326643519,-564.56823084,0.00038899,4]
[314419559,1708326643528,-500.0,0.00038899,4]
[314419560,1708326643538,-500.0,0.00038899,4]
[314419561,1708326643547,-500.0,0.00038899,2]
[314419562,1708326643556,-500.0,0.00038899,4]
[314419563,1708326643565,-570.87159326,0.00038899,4]
[314419564,1708326643576,-500.0,0.00038899,4]
[314419565,1708326643585,-908.11,0.00038899,4]
[314419566,1708326643594,-500.0,0.00038899,4]
[314419567,1708326643603,-500.0,0.00038899,4]
[314419568,1708326643613,-500.0,0.00038899,4]
[314419569,1708326643622,-500.0,0.00038899,4]
[314419570,1708326643631,-252.18104136,0.00038899,4]
[314419571,1708326643640,-220.95680819,0.00038899,4]
[314419572,1708326643650,-540.67854189,0.00038899,4]
[314419573,1708326643659,-500.0,0.00038899,4]
[314419574,1708326643668,-245.37967262,0.00038899,4]
[314419575,1708326643677,-214.78381777,0.00038899,4]
[314419576,1708326643686,-253.95804957,0.00038899,4]
[314419577,1708326643695,-500.0,0.00038899,4]
[314419578,1708326643704,-573.60476712,0.00038899,4]
[314419579,1708326643713,-600.70331353,0.00038899,4]
[314419580,1708326643722,-516.27742481,0.00038899,4]
[314419581,1708326643732,-500.0,0.00038899,4]
[314419582,1708326643742,-500.0,0.00038899,4]
[314419583,1708326643751,-518.4705962,0.00038899,4]
[314419584,1708326643760,-505.71393901,0.00038899,4]
[314419585,1708326643770,-187.71270086,0.00038899,4]
[314419586,1708326643779,-500.0,0.00038899,4]
[314419587,1708326643788,-500.0,0.00038899,4]
[314419588,1708326643798,-500.0,0.00038899,4]
[314419589,1708326643807,-291.38315103,0.00038899,4]
[314419590,1708326643819,-500.0,0.00038899,4]
[314419591,1708326643828,-235.36233248,0.00038899,4]
[314419592,1708326644017,-152.71,0.000389,3]
[314419593,1708326644027,-152.71,0.000389,3]
[314419594,1708326644037,-152.71,0.000389,3]
[314419595,1708326644046,-152.71,0.000389,3]
[314419596,1708326644055,-152.71,0.000389,3]
[314419597,1708326644064,-2182.73,0.000389,3]
[314419598,1708326644075,-2182.73,0.000389,3]
[314419599,1708326644084,-2182.73,0.000389,3]
[314419600,1708326644093,-2182.73,0.000389,3]
[314419601,1708326644102,-2182.73,0.000389,3]
[314419602,1708326644111,-2182.73,0.000389,3]
[314419603,1708326644120,-2182.73,0.000389,3]
[314419604,1708326644129,-2182.73,0.000389,3]
[314419605,1708326644138,-2182.73,0.000389,3]
[314419606,1708326644147,-2182.73,0.000389,3]
[314419607,1708326644156,-2182.73,0.000389,3]
[314419608,1708326644166,-2182.73,0.000389,3]
[314419609,1708326644175,-2182.73,0.000389,3]
[314419610,1708326644184,-2182.73,0.000389,3]
[314419611,1708326644194,-2182.73,0.000389,3]
[314419612,1708326644203,-2182.73,0.000389,3]
[314419613,1708326644212,-2182.73,0.000389,3]
[314419614,1708326644221,-2182.73,0.000389,3]
[314419615,1708326644234,-2182.73,0.000389,3]
[314419616,1708326644244,-2182.73,0.000389,3]
[314419617,1708326644254,-150.0,0.00038907,2]
[314419618,1708326644264,-3973.0306395,0.00038928,2]
[314419619,1708326644275,-3183.17,0.00038931,2]
[314419620,1708326644284,-3183.17,0.00038931,2]
[314419621,1708326644293,-3183.17,0.00038931,2]
[314419622,1708326644305,-3183.17,0.00038931,2]
[314419623,1708326644314,-3183.17,0.00038931,2]
[314419624,1708326644323,-3183.17,0.00038931,2]
[314419625,1708326644332,-3183.17,0.00038931,2]
[314419626,1708326644341,-3183.17,0.00038931,2]
[314419627,1708326644350,-3183.17,0.00038931,2]
[314419628,1708326644359,-3183.17,0.00038931,2]
[314419629,1708326644368,-3183.17,0.00038931,2]
[314419630,1708326644377,-3183.17,0.00038931,2]
[314419631,1708326644386,-3183.17,0.00038931,2]
[314419632,1708326644396,-3183.17,0.00038931,2]
[314419633,1708326644406,-3183.17,0.00038931,2]
[314419634,1708326644415,-3183.21148091,0.00038931,2]
[314419635,1708326644424,-5000.0,0.00038986,2]
[314419636,1708326644434,-5000.0,0.00038986,2]
[314419637,1708326644443,-5000.0,0.00038986,2]
[314419638,1708326644452,-2506.08593692,0.00038986,2]
[314419639,1708326644461,-500.0,0.00038987,4]
[314419640,1708326644470,-500.0,0.00038987,4]
[314419641,1708326644480,-500.0,0.00038987,4]
[314419642,1708326644490,-253.66101768,0.00038987,4]
[314419643,1708326644499,-227.26778001,0.00038987,4]
[314419644,1708326644508,-500.0,0.00038987,4]
[314419645,1708326644517,-593.64,0.00038987,4]
[314419646,1708326644527,-500.0,0.00038987,4]
[314419647,1708326644536,-500.0,0.00038987,4]
[314419648,1708326644546,-500.0,0.00038987,4]
[314419649,1708326644555,-6383.70660908,0.00038988,4]
[314419680,1708326645723,-942.156,0.00038988,4]
[314419693,1708326659943,360.43720995,0.0003,2]
[314419694,1708326679955,360.43720995,0.0003,2]
[314419695,1708326695960,187.97964846,0.0003,2]
[314419696,1708326695981,172.45756149,0.0003,2]
[314419697,1708326711955,360.43720995,0.0003,2]
[314419698,1708326731954,206.35943167,0.0003,2]
[314419699,1708327011622,550.0,0.00025,3]
[314419702,1708327628182,-152.51614987,0.00026894,2]
[314419703,1708327639211,-515.97745498,0.00026893,2]
[314419704,1708327639437,-1058.77076622,0.00026894,2]
[314419705,1708327639461,-500.0,0.00026894,2]
[314419706,1708327639483,-163.73311997,0.000269,2]
[314419707,1708327639503,-188.98214303,0.000269,2]
[314419708,1708327639527,-150.0,0.00026999,2]
[314419709,1708327639549,-283.35933861,0.00027,3]
[314419710,1708327651138,-316.64066139,0.00027,3]
[314419711,1708327651158,-500.0,0.00027,2]
[314419712,1708327651178,-500.0,0.00027,2]
[314419713,1708327651197,-500.0,0.00027,2]
[314419714,1708327651217,-500.0,0.00027,2]
[314419715,1708327651237,-500.0,0.00027,2]
[314419716,1708327651255,-500.0,0.00027,2]
[314419717,1708327651275,-500.0,0.00027,2]
[314419718,1708327651295,-500.0,0.00027,2]
[314419719,1708327651314,-500.0,0.00027,2]
[314419720,1708327651333,-238.57244631,0.00027,2]
[314419725,1708327746126,-261.42755369,0.00027,2]
[314419726,1708327746148,-650.0,0.00029,3]
[314419727,1708327746175,-163.73311992,0.00029279,2]
[314419728,1708327746197,-210.0,0.00029699,2]
[314419729,1708327746218,-413.34196174,0.0003,4]
[314419730,1708327746239,-514.89739082,0.0003,2]
[314419731,1708327746259,-3059.37,0.0003,2]
[314419732,1708327746280,-198.72477412,0.00031,3]
[314419733,1708327747124,-314.96728615,0.00031,3]
[314419736,1708327754108,-186.30793973,0.00031,3]
[314419737,1708327754129,-146.99555053,0.00031658,2]
[314419738,1708327761107,-16.73756939,0.00031658,2]
[314419739,1708327761128,-293.0,0.00032669,3]
[314419740,1708327761150,-4414.8341,0.000329,2]
[314419741,1708327761171,-500.0,0.000329,2]
[314419742,1708327761192,-481.46,0.000329,2]
[314419743,1708327761213,-589.54893283,0.00033,5]
[314419744,1708327761233,-12597.75289573,0.00033,2]
[314419745,1708327774101,-1568.9544379,0.00033,2]
[314419755,1708327831862,-0.01357023,0.00032998,4]
[314419756,1708327831874,-392.47674322,0.00032998,4]
[314419757,1708327831973,-300.76154545,0.00032998,4]
[314419758,1708327831983,-5833.29266637,0.00033,2]
[314419759,1708327831992,-750.0,0.00033,3]
[314419760,1708327832002,-126.18646011,0.00033727,2]
[314419761,1708327832014,-432.64353989,0.00033727,2]
[314419762,1708327832024,-104.56101594,0.00034037,2]
[314419763,1708327832041,-59.17210398,0.00034037,2]
[314419764,1708327832050,-1007.03331621,0.00034199,2]
[314419765,1708327832059,-150.0,0.00034199,2]
[314419766,1708327832068,-1105.53251447,0.000342,2]
[314419767,1708327832081,-435.46748553,0.000342,2]
[314419768,1708327832091,-4044.9204485,0.000342,2]
[314419769,1708327832114,-2620.65,0.000342,2]
[314419770,1708327832147,-637.48902228,0.000342,2]
[314419786,1708327837609,-440.76941061,0.000342,2]
[314419791,1708327837667,-1410.17111861,0.000342,2]
[314419793,1708327837678,-663.933366,0.0003452,2]
[314419795,1708327837687,-308.559699,0.0003452,2]
[314419797,1708327837698,-303.974555,0.0003452,2]
[314419799,1708327837707,-995.900049,0.00034794,2]
[314419801,1708327837717,-462.839548,0.00034794,2]
[314419802,1708327837726,-455.961832,0.00034794,2]
[314419803,1708327837736,-387.64946796,0.00034852,7]
[314419804,1708327837745,-1327.866732,0.00034931,2]
[314419805,1708327837754,-617.119398,0.00034931,2]
[314419806,1708327837763,-607.94911,0.00034931,2]
[314419807,1708327837772,-800.0,0.00035,3]
[314419808,1708327837781,-1659.833415,0.00035068,2]
[314419809,1708327837790,-771.399248,0.00035068,2]
[314419810,1708327837799,-759.936388,0.00035068,2]
[314419811,1708327837808,-692.22,0.00035135,2]
[314419812,1708327837817,-250.0,0.00035219,111]
[314419813,1708327837826,-4124.58,0.00035314,2]
[314419814,1708327837835,-2323.766781,0.00035342,2]
[314419815,1708327838046,-1079.958947,0.00035342,2]
[314419817,1708327838058,-1063.910943,0.00035342,2]
[314419818,1708327838067,-831.08766243,0.00035363,2]
[314419821,1708327838097,-252.545,0.00035363,2]
[314419823,1708327838109,-1621.36733757,0.00035363,2]
[314419825,1708327838118,-238.43,0.00035374,2]
[314419828,1708327838128,-474.56,0.000354,2]
[314419830,1708327838137,-690.46,0.00035404,2]
[314419832,1708327838147,-5256.16,0.00035426,2]
[314419834,1708327838156,-2000.0,0.00035516,2]
[314419836,1708327838165,-2576.11,0.00035555,2]
[314419838,1708327838175,-500.0,0.00035566,2]
[314419840,1708327838184,-750.0,0.00035584,2]
[314419842,1708327838193,-153.98,0.00035599,2]
[314419844,1708327838202,-250.0,0.00035599,2]
[314419846,1708327838212,-500.0,0.00035604,2]
[314419848,1708327838221,-150.0,0.00035606,2]
[314419850,1708327838231,-200.0,0.00035669,2]
[314419851,1708327838241,-153.02,0.00035681,2]
[314419852,1708327838250,-444.62,0.00035682,2]
[314419853,1708327838259,-156.6,0.00035693,2]
[314419854,1708327838268,-160.0,0.00035704,2]
[314419855,1708327838278,-153.02,0.00035813,2]
[314419856,1708327838287,-153.98,0.00035822,2]
[314419857,1708327838296,-1821.3,0.00035834,2]
[314419858,1708327838305,-845.88,0.00035911,2]
[314419859,1708327838314,-153.02,0.00035946,2]
[314419860,1708327838323,-558.83,0.00035991,2]
[314419861,1708327838332,-153.98,0.00036044,2]
[314419862,1708327838341,-153.02,0.00036079,2]
[314419864,1708327838351,-845.88,0.00036119,2]
[314419866,1708327838360,-153.02,0.00036212,2]
[314419868,1708327838369,-153.98,0.00036266,2]
[314419870,1708327838378,-845.88,0.00036326,2]
[314419872,1708327838388,-549.04,0.00036337,2]
[314419874,1708327838397,-153.02,0.00036345,2]
[314419876,1708327838406,-163.73311992,0.00036416,2]
[314419878,1708327838415,-153.02,0.00036477,2]
[314419880,1708327838426,-484.61,0.0003648,2]
[314419882,1708327838435,-153.98,0.00036489,2]
[314419884,1708327838445,-845.88,0.00036534,2]
[314419886,1708327838454,-11605.74,0.00036578,2]
[314419888,1708327838464,-200.0,0.00036581,2]
[314419890,1708327838474,-154.07,0.00036594,2]
[314419892,1708327838483,-153.02,0.0003661,2]
[314419894,1708327838491,-1000.0,0.00036649,2]
[314419896,1708327838501,-168.41569811,0.000367,2]
[314419898,1708327838510,-474.56,0.0003671,2]
[314419900,1708327838519,-153.98,0.00036711,2]
[314419902,1708327838528,-845.88,0.00036741,2]
[314419904,1708327838537,-153.02,0.00036743,2]
[314419906,1708327838546,-692.22,0.00036779,2]
[314419908,1708327838555,-2655.733464,0.000368,2]
[314419910,1708327838565,-1234.238796,0.000368,2]
[314419912,1708327838574,-153.02,0.00036876,2]
[314419914,1708327838588,-1712.26299415,0.00036888,4]
[314419916,1708327838597,-153.98,0.00036934,2]
[314419919,1708327838607,-845.88,0.00036949,2]
[314419921,1708327838617,-933.43174072,0.00036998,4]
[314419922,1708327838627,-500.0,0.00036998,4]
[314419923,1708327838637,-12037.0,0.00037,2]
[314419924,1708327838647,-850.0,0.00037,3]
[314419925,1708327838657,-1000.0,0.00037,2]
[314419926,1708327838667,-153.02,0.00037009,2]
[314419927,1708327838677,-157.46,0.00037035,2]
[314419928,1708327838686,-153.02,0.00037141,2]
[314419929,1708327838696,-845.88,0.00037156,2]
[314419930,1708327838705,-153.98,0.00037156,2]
[314419931,1708327838714,-840.0,0.00037168,2]
[314419932,1708327838724,-153.02,0.00037274,2]
[314419933,1708327838733,-845.88,0.00037364,2]
[314419934,1708327838743,-157.46,0.00037372,2]
[314419935,1708327838752,-153.98,0.00037379,2]
[314419936,1708327838761,-153.02,0.00037407,2]
[314419937,1708327838771,-604.94,0.00037426,2]
[314419938,1708327838781,-1038.58,0.00037486,2]
[314419939,1708327838790,-13037.58,0.000375,2]
[314419940,1708327838799,-153.02,0.0003754,2]
[314419941,1708327838809,-845.88,0.00037571,2]
[314419942,1708327838818,-153.98,0.00037601,2]
[314419943,1708327838827,-157.46,0.00037709,2]
[314419944,1708327838836,-168.41569811,0.00037721,2]
[314419945,1708327838845,-6305.54784233,0.00037772,5]
[314419946,1708327838855,-845.88,0.00037779,2]
[314419947,1708327838864,-1389.62266811,0.00037799,2]
[314419948,1708327838874,-2000.0,0.000378,2]
[314419949,1708327838885,-154.2221357,0.000378,2]
[314419950,1708327838894,-153.98,0.00037824,2]
[314419951,1708327838903,-2948.6747,0.00037826,2]
[314419952,1708327838912,-155.34206102,0.00037858,4]
[314419953,1708327838921,-1178.83634385,0.00037858,2]
[314419954,1708327838930,-470.94391386,0.00037861,2]
[314419955,1708327838940,-6849.54148666,0.00037861,2]
[314419956,1708327838953,-14109.26600319,0.00037861,2]
[314419957,1708327838965,-7525.10977238,0.00037861,2]
[314419958,1708327838976,-635.12169724,0.00037861,2]
[314419959,1708327838987,-1257.66957467,0.00037861,2]
[314419960,1708327838999,-843.85681644,0.00037861,2]
[314419961,1708327839010,-625.69874942,0.00037861,2]
[314419962,1708327839020,-150.0,0.000379,2]
[314419963,1708327839029,-157.02,0.00037922,2]
[314419964,1708327839038,-986.55400994,0.00037961,7]
[314419965,1708327839058,-247.7475289,0.00037961,7]
[314419966,1708327839067,-229.91718057,0.00037961,10]
[314419967,1708327839087,-770.08281943,0.00037961,10]
[314419968,1708327839096,-432.65786353,0.00037961,7]
[314419969,1708327839106,-233.66547506,0.00037961,7]
[314419970,1708327839115,-41369.60355601,0.00038,4]
[314419972,1708327840506,-786.645,0.00038,4]
[314419973,1708327840517,-685.7863627,0.00038,4]
[314419974,1708327841212,-15037.06981457,0.00038,4]
[314419975,1708327841222,-1000.0,0.00038,38]
[314419976,1708327841231,-274.48208239,0.00038,2]
[314419977,1708327841241,-2000.0,0.00038,4]
[314419978,1708327841250,-5000.0,0.00038,5]
[314419979,1708327841259,-1084.0,0.00038,5]
[314419980,1708327841269,-474.56,0.0003802,2]
[314419981,1708327841278,-157.46,0.00038045,2]
[314419982,1708327841287,-153.98,0.00038046,2]
[314419983,1708327841296,-154.22213567,0.00038049,2]
[314419984,1708327841305,-470.94391384,0.0003813,2]
[314419985,1708327841315,-558.83,0.00038254,2]
[314419986,1708327841324,-153.98,0.00038269,2]
[314419987,1708327841333,-154.22213567,0.00038298,2]
[314419988,1708327841342,-435.09,0.00038356,15]
[314419989,1708327841351,-150.0,0.00038356,2]
[314419990,1708327841360,-157.46,0.00038382,2]
[314419991,1708327841370,-779.05320665,0.00038388,13]
[314419992,1708327841379,-792.41405196,0.00038388,14]
[314419993,1708327841389,-2682.79784314,0.00038388,12]
[314419994,1708327841398,-470.94391384,0.00038399,2]
[314419995,1708327841407,-692.22,0.00038422,2]
[314419996,1708327841416,-150.0,0.00038448,2]
[314419997,1708327841425,-153.98,0.00038491,2]
[314419998,1708327841434,-5000.0,0.000385,7]
[314420000,1708327841443,-5000.0,0.000385,7]
[314420002,1708327841452,-154.22213567,0.00038546,2]
[314420004,1708327841462,-176.06,0.00038562,2]
[314420006,1708327841471,-151.0,0.00038567,7]
[314420007,1708327841480,-500.0,0.0003863,4]
[314420008,1708327841489,-500.0,0.0003863,4]
[314420009,1708327841498,-791.14,0.0003863,4]
[314420010,1708327841507,-468.02366247,0.0003863,4]
[314420011,1708327841517,-500.0,0.0003863,2]
[314420012,1708327841531,-470.94391384,0.00038668,2]
[314420013,1708327841544,-151.0,0.00038704,7]
[314420014,1708327841556,-1041.47187252,0.00038707,10]
[314420015,1708327841568,-153.98,0.00038714,2]
[314420016,1708327841582,-520.73593626,0.00038716,10]
[314420017,1708327841592,-3183.17,0.00038717,2]
[314420018,1708327841603,-3183.17,0.00038717,2]
[314420019,1708327841615,-3183.17,0.00038717,2]
[314420020,1708327841628,-3183.17,0.00038717,2]
[314420021,1708327841641,-3183.17,0.00038717,2]
[314420022,1708327841653,-3183.17,0.00038717,2]
[314420023,1708327841666,-3183.17,0.00038717,2]
[314420024,1708327841678,-3183.17,0.00038717,2]
[314420025,1708327841691,-3183.17,0.00038717,2]
[314420026,1708327841703,-3183.17,0.00038717,2]
[314420027,1708327841713,-3183.17,0.00038717,2]
[314420028,1708327841724,-3183.17,0.00038717,2]
[314420029,1708327841737,-3183.17,0.00038717,2]
[314420030,1708327841749,-3183.17,0.00038717,2]
[314420031,1708327841761,-3183.17,0.00038717,2]
[314420032,1708327841773,-3183.21148091,0.00038717,2]
[314420033,1708327841785,-157.46,0.00038719,2]
[314420034,1708327841796,-525.92649258,0.00038726,4]
[314420035,1708327841807,-514.75,0.00038726,4]
[314420036,1708327841820,-500.0,0.00038726,4]
[314420037,1708327841831,-427.50202955,0.00038726,4]
[314420038,1708327841841,-500.0,0.00038726,4]
[314420039,1708327841852,-565.31441432,0.00038726,4]
[314420040,1708327841864,-500.0,0.00038726,4]
[314420041,1708327841876,-485.72750328,0.00038726,4]
[314420042,1708327841887,-500.0,0.00038726,4]
[314420043,1708327841899,-498.40051235,0.00038726,4]
[314420044,1708327841912,-570.68457418,0.00038726,4]
[314420045,1708327841923,-664.61,0.00038726,2]
[314420046,1708327841935,-553.11687391,0.00038726,4]
[314420047,1708327841945,-569.16382589,0.00038726,4]
[314420048,1708327841957,-500.0,0.00038726,4]
[314420049,1708327841969,-534.0534945,0.00038726,4]
[314420050,1708327841980,-500.0,0.00038726,4]
[314420051,1708327841991,-558.56197666,0.00038726,4]
[314420052,1708327842004,-528.48179244,0.00038726,4]
[314420053,1708327842016,-553.41738135,0.00038726,4]
[314420054,1708327842028,-704.14,0.00038726,4]
[314420055,1708327842040,-500.0,0.00038726,4]
[314420056,1708327842052,-569.44132704,0.00038726,4]
[314420057,1708327842064,-520.73593626,0.00038731,10]
[314420058,1708327842074,-168.41569811,0.00038741,2]
[314420059,1708327842084,-280.10215641,0.00038777,2]
[314420060,1708327842094,-893.42458852,0.00038784,2]
[314420061,1708327842104,-20000.0,0.00038785,2]
[314420062,1708327842115,-1159.1249,0.00038785,2]
[314420063,1708327842127,-154.46282642,0.00038788,2]
[314420064,1708327842139,-242.71793406,0.00038794,12]
[314420065,1708327842150,-171.6266356,0.00038794,4]
[314420066,1708327842160,-273.14010341,0.00038794,4]
[314420067,1708327842172,-500.0,0.00038794,4]
[314420068,1708327842183,-500.0,0.00038794,4]
[314420069,1708327842193,-523.56406692,0.00038794,4]
[314420070,1708327842204,-500.0,0.00038794,4]
[314420071,1708327842214,-500.0,0.00038794,4]
[314420072,1708327842223,-500.0,0.00038794,4]
[314420073,1708327842234,-500.0,0.00038794,4]
[314420074,1708327842245,-500.0,0.00038794,4]
[314420075,1708327842255,-158.62614118,0.00038794,4]
[314420076,1708327842266,-1280.61322574,0.00038795,12]
[314420077,1708327842278,-163.73311992,0.00038795,2]
[314420078,1708327842289,-894.54013109,0.00038795,2]
[314420079,1708327842300,-194.9310065,0.00038795,7]
[314420080,1708327842310,-330.0244122,0.00038795,2]
[314420081,1708327842321,-3031.03626634,0.00038795,2]
[314420082,1708327842332,-172.81701928,0.00038795,2]
[314420083,1708327842342,-154.22213567,0.00038795,2]
[314420084,1708327842353,-155.74566466,0.000388,120]
[314420085,1708327842364,-2603.6796813,0.00038821,10]
[314420086,1708327842376,-416.53875509,0.0003883,2]
[314420087,1708327842387,-65793.70276143,0.00038831,2]
[314420088,1708327842494,-790.59216382,0.00038831,2]
[314420089,1708327842507,-11020.34677475,0.00038831,2]
[314420090,1708327842518,-151.0,0.00038841,7]
[314420091,1708327842529,-2082.94374504,0.00038865,10]
[314420092,1708327842540,-150.0,0.00038866,2]
[314420093,1708327842550,-371.09959848,0.00038872,3]
[314420094,1708327842561,-60974.50632693,0.00038872,2]
[314420096,1708327844873,-500.0,0.0003863,4]
[314420097,1708327844882,-20.78309905,0.00038795,30]
[314420098,1708327844894,-366.45116254,0.00038795,30]
[314420099,1708327844905,-838.96451901,0.00038795,30]
[314420100,1708327844915,-4402.33548099,0.00038872,2]
[314420101,1708327844932,-10478.6,0.00038872,2]
[314420102,1708327844944,-6551.57350206,0.00038872,2]
[314420103,1708327844955,-3145.2,0.00038872,2]
[314420104,1708327844976,-9144.5028033,0.00038872,2]
[314420106,1708327845301,-0.01326013,0.00038872,2]
[314420108,1708327846081,-178.23806215,0.00038871,4]
[314420109,1708327846091,-314995.14506379,0.00038872,2]
[314420110,1708327846101,-91514.6050844,0.00038875,4]
[314420111,1708327846111,-532.78,0.00038875,4]
[314420112,1708327846120,-500.0,0.00038875,4]
[314420113,1708327846129,-791.14,0.00038875,4]
[314420114,1708327846139,-500.0,0.00038875,2]
[314420115,1708327846148,-172.67820331,0.00038875,4]
[314420116,1708327846157,-5000.0,0.00038877,3]
[314420117,1708327846166,-34218.52617822,0.00038881,8]
[314420118,1708327846176,-500.0,0.00038882,4]
[314420119,1708327846185,-249.73984962,0.00038882,4]
[314420120,1708327846194,-500.0,0.00038882,4]
[314420121,1708327846204,-431.65838697,0.00038882,4]
[314420122,1708327846213,-500.0,0.00038882,4]
[314420123,1708327846223,-233.23516517,0.00038882,4]
[314420124,1708327846232,-500.0,0.00038882,4]
[314420125,1708327846241,-1167.0,0.00038883,2]
[314420126,1708327846250,-150.0,0.00038883,2]
[314420127,1708327846259,-500.0,0.00038883,4]
[314420128,1708327846268,-791.14,0.00038883,4]
[314420129,1708327846278,-352510.71501004,0.00038884,3]
[314420130,1708327846287,-500.0,0.00038884,4]
[314420131,1708327846297,-500.0,0.00038884,4]
[314420132,1708327846306,-500.0,0.00038884,4]
[314420133,1708327846315,-500.0,0.00038884,4]
[314420134,1708327846324,-500.0,0.00038884,4]
[314420135,1708327846333,-206.4073546,0.00038884,4]
[314420136,1708327846342,-500.0,0.00038884,2]
[314420137,1708327846351,-500.0,0.00038884,2]
[314420138,1708327846360,-500.0,0.00038884,2]
[314420139,1708327846369,-500.0,0.00038884,4]
[314420140,1708327846379,-1156.29,0.00038884,4]
[314420141,1708327846390,-500.0,0.00038884,4]
[314420142,1708327846399,-250.41,0.00038884,4]
[314420143,1708327846408,-570.45859232,0.00038884,4]
[314420144,1708327846417,-500.0,0.00038884,4]
[314420145,1708327846426,-500.0,0.00038884,4]
[314420146,1708327846436,-500.0,0.00038884,2]
[314420147,1708327846445,-500.0,0.00038884,2]
[314420148,1708327846454,-500.0,0.00038884,2]
[314420149,1708327846463,-172.56286795,0.00038884,4]
[314420150,1708327846473,-584.45489072,0.00038884,4]
[314420151,1708327846482,-500.0,0.00038884,4]
[314420152,1708327846491,-235.36233248,0.00038884,4]
[314420153,1708327846501,-555.34,0.00038884,4]
[314420154,1708327846510,-594.14605706,0.00038884,4]
[314420155,1708327846519,-500.0,0.00038884,4]
[314420156,1708327846529,-500.0,0.00038884,4]
[314420157,1708327846538,-500.0,0.00038884,4]
[314420158,1708327846547,-154.10401135,0.00038884,4]
[314420159,1708327846556,-570.87159326,0.00038884,4]
[314420160,1708327846565,-271.25857913,0.00038884,4]
[314420161,1708327846574,-482.11888348,0.00038884,4]
[314420162,1708327846586,-500.0,0.00038884,4]
[314420163,1708327846595,-374.4836112,0.00038884,4]
[314420164,1708327846604,-500.0,0.00038884,4]
[314420165,1708327846613,-500.0,0.00038884,4]
[314420166,1708327846623,-600.70331353,0.00038884,4]
[314420167,1708327846632,-607.76302433,0.00038884,4]
[314420168,1708327846641,-320.27789519,0.00038884,4]
[314420169,1708327846650,-500.0,0.00038884,4]
[314420170,1708327846660,-482.66887626,0.00038884,4]
[314420171,1708327846669,-500.0,0.00038884,4]
[314420172,1708327846678,-167.94697078,0.00038884,4]
[314420173,1708327846689,-224.30125086,0.00038884,4]
[314420174,1708327846699,-500.0,0.00038884,4]
[314420175,1708327846707,-332.94381859,0.00038884,4]
[314420176,1708327846716,-500.0,0.00038884,4]
[314420177,1708327846725,-500.0,0.00038884,4]
[314420178,1708327846734,-195.78034027,0.00038884,4]
[314420179,1708327846743,-253.66101768,0.00038884,4]
[314420180,1708327846753,-252.18104136,0.00038884,4]
[314420181,1708327846762,-220.95680819,0.00038884,4]
[314420182,1708327846771,-571.44056179,0.00038884,4]
[314420183,1708327846780,-500.0,0.00038884,4]
[314420184,1708327846789,-500.0,0.00038884,4]
[314420185,1708327846798,-500.0,0.00038884,4]
[314420186,1708327846807,-500.0,0.00038884,4]
[314420187,1708327846817,-500.0,0.00038884,4]
[314420188,1708327846826,-500.0,0.00038884,4]
[314420189,1708327846836,-161.97383477,0.00038884,4]
[314420190,1708327846845,-500.0,0.00038884,4]
[314420191,1708327846854,-500.0,0.00038884,4]
[314420192,1708327846863,-518.4705962,0.00038884,4]
[314420193,1708327846872,-505.71393901,0.00038884,4]
[314420194,1708327846881,-245.37967262,0.00038884,4]